bitfinex-derivatives/quotes_BNBF0:USTF0_20250524
["timestamp","ask_amount","ask_price","bid_price","bid_amount"]
[1748072350331,0.29837831,670.29,669.2,1.15934712]
[1748072351129,0.29837831,670.29,669.21,1.15934712]
[1748072352530,0.29837831,670.29,669.22,1.15934712]
[1748072354026,0.29837831,670.29,669.23,1.15934712]
[1748072355633,0.29837831,670.29,669.24,1.15934712]
[1748072356933,0.29837831,670.29,669.25,1.15934712]
[1748072358437,0.29837831,670.29,669.26,1.15934712]
[1748072360239,0.29837831,670.29,669.27,1.15934712]
[1748072361237,0.29837831,670.29,669.28,1.15934712]
[1748072362033,0.29837831,670.29,669.29,1.15934712]
[1748072363338,0.29837831,670.29,669.3,1.15934712]
[1748072364540,0.29837831,670.29,669.31,1.15934712]
[1748072366241,0.29837831,670.29,668.24,3.7036209]
[1748072366242,0.29837831,670.29,669.32,1.15934712]
[1748072367441,0.29837831,670.29,669.33,1.15934712]
[1748072369143,0.29837831,670.29,669.17,1.15934712]
[1748072370343,0.29837831,670.29,669.18,1.15934712]
[1748072371843,0.29837831,670.29,669.19,1.15934712]
[1748072372843,0.29837831,670.29,669.02,1.15934712]
[1748072374043,0.29837831,670.29,669.03,1.15934712]
[1748072375140,0.29837831,670.29,669.04,1.15934712]
[1748072376444,0.29837831,670.29,668.99,1.10970537]
[1748072376445,0.29837831,670.29,669.05,1.15934712]
[1748072377544,0.29837831,670.29,668.93,1.10970537]
[1748072377545,0.29837831,670.29,669.06,1.15934712]
[1748072378947,3.71709254,670.2,668.94,1.15934712]
[1748072379146,0.29842728,670.18,668.94,1.15934712]
[1748072380846,0.29842728,670.18,668.95,1.15934712]
[1748072382153,0.29842728,670.18,668.96,1.15934712]
[1748072383152,0.29842728,670.18,668.97,1.15934712]
[1748072384754,0.29842728,670.18,668.81,1.15934712]
[1748072385853,0.29842728,670.18,668.82,1.15934712]
[1748072387757,0.29842728,670.18,668.83,1.15934712]
[1748072389255,0.29842728,670.18,668.84,1.15934712]
[1748072390555,0.29842728,670.18,668.85,1.15934712]
[1748072391952,0.29842728,670.18,668.77,1.15934712]
[1748072393657,0.29842728,670.18,668.78,1.15934712]
[1748072394757,0.29842728,670.18,668.79,1.15934712]
[1748072396058,0.29842728,670.18,668.8,1.15934712]
[1748072396854,0.29842728,670.18,668.81,1.15934712]
[1748072398263,0.29842728,670.18,668.77,1.15934712]
[1748072398959,0.29842728,670.18,668.78,1.15934712]
[1748072401063,0.29842728,670.18,668.64,1.15934712]
[1748072402372,0.29842728,670.18,668.65,1.15934712]
[1748072403572,0.29842728,670.18,668.66,1.15934712]
[1748072404568,0.29842728,670.18,668.67,1.15934712]
[1748072406070,0.29842728,670.18,668.68,1.15934712]
[1748072407570,0.29842728,670.18,668.69,1.15934712]
[1748072408971,0.29842728,670.18,668.7,1.15934712]
[1748072410267,0.29842728,670.18,668.56,1.15934712]
[1748072411272,0.29842728,670.18,668.58,1.10970537]
[1748072413073,0.29842728,670.18,668.59,1.15934712]
[1748072414477,0.29842728,670.18,668.6,1.15934712]
[1748072415678,0.29842728,670.18,668.61,1.15934712]
[1748072417280,0.29842728,670.18,668.66,1.10970537]
[1748072418380,0.29842728,670.18,668.67,1.15934712]
[1748072419484,0.29842728,670.18,668.39,2.22217254]
[1748072419485,0.29842728,670.18,668.69,1.10970537]
[1748072420387,0.29842728,670.18,668.7,1.15934712]
[1748072421887,0.29842728,670.18,668.74,1.10970537]
[1748072422890,0.29842728,670.18,668.75,1.15934712]
[1748072424489,0.29842728,670.18,668.76,1.15934712]
[1748072425593,0.29842728,670.18,668.77,1.15934712]
[1748072426695,0.29842728,670.18,668.78,2.26905249]
[1748072427690,0.29842728,670.18,668.79,1.15934712]
[1748072428797,0.29842728,670.18,668.8,2.26905249]
[1748072429997,0.29842728,670.18,668.81,1.15934712]
[1748072431801,3.71709254,670.15,668.82,2.26905249]
[1748072431999,0.29844955,670.13,668.82,2.26905249]
[1748072432798,0.29844955,670.13,668.83,1.15934712]
[1748072434500,0.29844955,670.13,668.84,1.15934712]
[1748072436201,0.29844955,670.13,668.85,1.15934712]
[1748072437402,0.29844955,670.13,668.86,1.15934712]
[1748072438906,0.29844955,670.13,668.87,1.15934712]
[1748072440503,0.29844955,670.13,668.88,1.15934712]
[1748072441707,0.29844955,670.13,668.89,1.15934712]
[1748072443508,0.29844955,670.13,668.9,1.15934712]
[1748072444808,0.29844955,670.13,668.8,1.10970537]
[1748072444809,0.29844955,670.13,668.91,1.15934712]
[1748072445704,0.29844955,670.13,668.92,1.15934712]
[1748072447112,0.29844955,670.13,668.93,1.15934712]
[1748072448516,0.29844955,670.13,668.94,1.15934712]
[1748072449613,0.29844955,670.13,668.95,1.15934712]
[1748072450915,0.29844955,670.13,668.96,1.15934712]
[1748072452314,0.29844955,670.13,668.97,1.15934712]
[1748072453716,0.29844955,670.13,668.82,1.15934712]
[1748072455118,0.29844955,670.13,668.83,1.15934712]
[1748072456820,0.29844955,670.13,668.84,1.15934712]
[1748072457923,0.29844955,670.13,668.85,1.15934712]
[1748072459420,0.29844955,670.13,668.86,1.15934712]
[1748072460725,0.29844955,670.13,668.87,1.15934712]
[1748072462321,0.29844955,670.13,668.88,1.15934712]
[1748072463424,0.29844955,670.13,668.76,1.15934712]
[1748072465120,0.29844955,670.13,668.77,1.15934712]
[1748072465927,0.25995563,669.8,668.77,1.15934712]
[1748072466124,0.29860551,669.78,668.77,1.15934712]
[1748072466620,0.29860551,669.78,668.78,1.15934712]
[1748072468221,0.29860551,669.78,668.79,1.15934712]
[1748072469128,0.29860551,669.78,668.8,1.15934712]
[1748072470432,0.29860551,669.78,668.81,1.15934712]
[1748072471433,0.29860551,669.78,668.64,1.15934712]
[1748072472733,0.29860551,669.78,668.65,1.15934712]
[1748072474131,0.29860551,669.78,668.66,1.15934712]
[1748072475429,0.29860551,669.78,668.67,1.15934712]
[1748072476334,0.29860551,669.78,668.68,1.15934712]
[1748072477635,0.29860551,669.78,668.69,1.15934712]
[1748072479138,0.29860551,669.78,668.7,1.15934712]
[1748072480339,0.29860551,669.78,668.71,1.15934712]
[1748072481439,0.29860551,669.78,668.72,1.15934712]
[1748072483240,0.29860551,669.78,668.73,1.15934712]
[1748072484737,0.29860551,669.78,668.74,1.15934712]
[1748072486142,0.29860551,669.78,668.75,1.15934712]
[1748072487042,0.29860551,669.78,668.63,1.15934712]
[1748072488441,0.29860551,669.78,668.64,1.15934712]
[1748072489944,0.29860551,669.78,668.65,1.15934712]
[1748072492038,0.29860551,669.78,668.66,1.15934712]
[1748072493146,0.29860551,669.78,668.67,1.15934712]
[1748072494643,0.29860551,669.78,668.68,1.15934712]
[1748072495850,0.29860551,669.78,668.69,1.15934712]
[1748072497152,0.29860551,669.78,668.7,1.15934712]
[1748072498350,0.29860551,669.78,668.71,1.15934712]
[1748072500253,0.29860551,669.78,668.72,1.15934712]
[1748072501454,0.29860551,669.78,668.73,1.15934712]
[1748072502951,0.29860551,669.78,668.74,1.15934712]
[1748072504353,0.29860551,669.78,668.75,1.15934712]
[1748072505257,0.29860551,669.78,668.76,1.15934712]
[1748072506154,0.29860551,669.78,668.77,1.15934712]
[1748072507559,0.29860551,669.78,668.78,1.15934712]
[1748072508861,0.29860551,669.78,668.79,1.15934712]
[1748072510361,0.29860551,669.78,668.8,1.15934712]
[1748072511558,0.29860551,669.78,668.81,1.15934712]
[1748072513668,0.29860551,669.78,668.63,1.15934712]
[1748072514367,0.29860551,669.78,668.64,1.15934712]
[1748072515970,0.29860551,669.78,668.65,1.15934712]
[1748072517271,0.29860551,669.78,668.66,1.15934712]
[1748072519072,0.29860551,669.78,668.67,1.15934712]
[1748072520573,0.29860551,669.78,668.68,1.15934712]
[1748072522272,0.29860551,669.78,668.69,1.15934712]
[1748072524277,0.29860551,669.78,668.7,1.15934712]
[1748072525471,0.29860551,669.78,668.71,1.15934712]
[1748072526175,0.29860551,669.78,668.72,1.15934712]
[1748072528778,0.29860551,669.78,668.58,1.15934712]
[1748072529780,0.29860551,669.78,668.59,1.15934712]
[1748072531276,0.29860551,669.78,668.6,1.15934712]
[1748072532583,0.29860551,669.78,668.44,1.15934712]
[1748072533782,0.29860551,669.78,668.45,1.15934712]
[1748072534483,0.29860551,669.78,668.46,1.15934712]
[1748072535883,0.29860551,669.78,668.47,1.15934712]
[1748072537078,0.29860551,669.78,668.48,1.15934712]
[1748072538284,0.29860551,669.78,668.49,1.15934712]
[1748072539490,0.29860551,669.78,668.5,1.15934712]
[1748072541089,0.29860551,669.78,668.27,1.48144836]
[1748072541090,0.29860551,669.78,668.51,1.15934712]
[1748072542191,0.29860551,669.78,668.52,1.15934712]
[1748072543886,0.29860551,669.78,668.42,1.15934712]
[1748072545593,0.29860551,669.78,668.43,1.15934712]
[1748072547195,0.29860551,669.78,668.44,1.15934712]
[1748072548297,0.29860551,669.78,668.45,1.15934712]
[1748072549893,0.29860551,669.78,668.46,1.15934712]
[1748072551999,0.29860551,669.78,668.47,1.15934712]
[1748072553400,0.29860551,669.78,668.48,1.15934712]
[1748072554900,0.29860551,669.78,668.49,1.15934712]
[1748072556603,0.29860551,669.78,668.5,1.15934712]
[1748072557804,0.29860551,669.78,668.33,1.15934712]
[1748072559101,0.29860551,669.78,668.34,1.15934712]
[1748072560306,0.29860551,669.78,668.35,1.15934712]
[1748072561710,0.29860551,669.78,668.25,1.15934712]
[1748072562407,0.29860551,669.78,668.26,1.15934712]
[1748072564103,0.29860551,669.78,668.27,1.15934712]
[1748072565207,0.29860551,669.78,668.28,1.15934712]
[1748072566310,0.29860551,669.78,668.14,1.15934712]
[1748072567211,0.29860551,669.78,668.15,1.15934712]
[1748072568212,0.29860551,669.78,668.16,1.15934712]
[1748072569312,0.29860551,669.78,668.17,1.15934712]
[1748072570412,0.29860551,669.78,668.18,1.15934712]
[1748072571513,0.29860551,669.78,668.19,1.15934712]
[1748072573017,0.29860551,669.78,668.2,1.15934712]
[1748072574515,0.29860551,669.78,668.21,1.15934712]
[1748072575918,0.29860551,669.78,668.22,1.15934712]
[1748072576919,0.29860551,669.78,668.23,1.15934712]
[1748072578317,0.29860551,669.78,668.24,1.15934712]
[1748072579219,0.29860551,669.78,668.17,1.15934712]
[1748072580719,3.71709254,669.58,668.18,1.15934712]
[1748072580919,0.29870362,669.56,668.18,1.15934712]
[1748072582115,0.29870362,669.56,668.19,1.15934712]
[1748072583221,0.29870362,669.56,668.2,1.15934712]
[1748072584121,0.29870362,669.56,668.21,1.15934712]
[1748072585423,0.29870362,669.56,668.22,1.15934712]
[1748072586620,0.29870362,669.56,668.23,1.15934712]
[1748072588221,0.29870362,669.56,668.24,1.15934712]
[1748072589626,0.29870362,669.56,668.25,1.15934712]
[1748072590729,0.29870362,669.56,668.26,1.15934712]
[1748072591930,0.29870362,669.56,668.27,1.15934712]
[1748072593026,0.29870362,669.56,668.28,1.15934712]
[1748072594232,0.29870362,669.56,668.29,1.15934712]
[1748072595127,0.29870362,669.56,668.3,1.15934712]
[1748072596228,0.29870362,669.56,668.2,1.15934712]
[1748072597938,0.29870362,669.56,668.21,1.15934712]
[1748072599131,0.29870362,669.56,668.22,1.15934712]
[1748072600233,0.29870362,669.56,668.23,1.15934712]
[1748072601636,0.29870362,669.56,668.24,1.15934712]
[1748072603539,0.29870362,669.56,668.25,1.15934712]
[1748072605843,0.29870362,669.56,668.2,1.10970537]
[1748072605844,0.29870362,669.56,668.26,1.15934712]
[1748072607640,0.29870362,669.56,668.27,1.15934712]
[1748072608843,0.29870362,669.56,668.28,1.15934712]
[1748072610145,0.29870362,669.56,668.29,1.15934712]
[1748072611445,0.29870362,669.56,668.3,1.15934712]
[1748072613044,0.29870362,669.56,668.34,1.10970537]
[1748072614445,0.29870362,669.56,668.35,1.15934712]
[1748072615646,0.29870362,669.56,668.38,1.10970537]
[1748072616846,0.29870362,669.56,668.39,1.15934712]
[1748072618450,0.29870362,669.56,668.4,1.15934712]
[1748072620049,0.29870362,669.56,668.41,1.15934712]
[1748072621245,0.29870362,669.56,668.42,1.15934712]
[1748072622346,0.29870362,669.56,668.43,1.15934712]
[1748072624154,0.29870362,669.56,668.44,1.15934712]
[1748072625355,0.29870362,669.56,668.45,1.15934712]
[1748072626858,0.29870362,669.56,668.46,1.15934712]
[1748072627857,0.29870362,669.56,668.47,1.15934712]
[1748072628658,0.29870362,669.56,668.48,1.15934712]
[1748072629759,0.29870362,669.56,668.26,1.10970537]
[1748072629760,0.29870362,669.56,668.27,1.15934712]
[1748072631160,0.29870362,669.56,668.28,1.15934712]
[1748072632360,0.29870362,669.56,668.29,1.15934712]
[1748072634112,3.71709254,669.54,668.3,1.15934712]
[1748072634113,0.29872147,669.52,668.3,1.15934712]
[1748072635161,0.29872147,669.52,668.31,1.15934712]
[1748072636858,0.29872147,669.52,668.32,1.15934712]
[1748072638063,0.29872147,669.52,668.33,1.15934712]
[1748072639565,0.29872147,669.52,668.34,1.15934712]
[1748072640760,0.29872147,669.52,668.35,1.15934712]
[1748072641565,0.29872147,669.52,668.36,1.15934712]
[1748072642465,0.29872147,669.52,668.28,1.10970537]
[1748072642466,0.29872147,669.52,668.37,1.15934712]
[1748072643867,0.29872147,669.52,668.38,1.15934712]
[1748072645363,0.29872147,669.52,668.39,1.15934712]
[1748072647570,0.29872147,669.52,668.4,1.15934712]
[1748072648971,0.29872147,669.52,668.41,1.15934712]
[1748072650271,0.29872147,669.52,668.42,1.15934712]
[1748072651073,0.29872147,669.52,668.43,1.15934712]
[1748072651976,0.29872147,669.52,668.44,1.15934712]
[1748072653177,0.29872147,669.52,668.45,1.15934712]
[1748072654281,0.29872147,669.52,668.24,1.15934712]
[1748072655281,0.29872147,669.52,668.25,1.15934712]
[1748072656983,0.29872147,669.52,668.26,1.15934712]
[1748072658084,0.29872147,669.52,668.27,1.15934712]
[1748072659987,0.29872147,669.52,668.28,1.15934712]
[1748072660880,0.29872147,669.52,668.29,1.15934712]
[1748072661986,0.29872147,669.52,668.3,1.15934712]
[1748072663488,0.29872147,669.52,668.31,1.15934712]
[1748072665592,0.29872147,669.52,668.15,1.10970537]
[1748072665593,0.29872147,669.52,668.32,1.15934712]
[1748072666292,0.26017427,669.23,668.32,1.15934712]
[1748072666488,0.29885984,669.21,668.32,1.15934712]
[1748072666687,0.29885984,669.21,668.33,1.15934712]
[1748072667593,0.29885984,669.21,668.34,1.15934712]
[1748072668592,0.29885984,669.21,668.35,1.15934712]
[1748072669893,0.29885984,669.21,668.36,1.15934712]
[1748072670892,0.29885984,669.21,668.15,1.15934712]
[1748072672495,0.29885984,669.21,668.19,1.10970537]
[1748072674495,0.29885984,669.21,668.2,1.15934712]
[1748072675595,0.29885984,669.21,668.21,1.15934712]
[1748072676497,0.29885984,669.21,668.22,1.15934712]
[1748072677495,0.29885984,669.21,668.23,1.15934712]
[1748072678701,0.29885984,669.21,668.24,1.15934712]
[1748072680105,0.29885984,669.21,668.25,1.15934712]
[1748072681205,0.29885984,669.21,668.26,1.15934712]
[1748072682806,0.29885984,669.21,668.27,1.15934712]
[1748072683706,0.29885984,669.21,668.28,1.15934712]
[1748072685710,0.29885984,669.21,668.29,1.15934712]
[1748072686705,0.29885984,669.21,668.3,1.15934712]
[1748072687811,0.29885984,669.21,668.31,1.15934712]
[1748072689214,0.29885984,669.21,668.32,1.15934712]
[1748072691314,0.29885984,669.21,668.33,1.15934712]
[1748072692915,0.29885984,669.21,668.34,1.15934712]
[1748072694517,0.29885984,669.21,668.35,1.15934712]
[1748072695820,0.29885984,669.21,668.36,1.15934712]
[1748072697613,0.29885984,669.21,668.37,1.15934712]
[1748072698520,0.29885984,669.21,668.38,1.15934712]
[1748072700415,0.29885984,669.21,668.39,1.15934712]
[1748072701815,0.29885984,669.21,668.4,1.15934712]
[1748072703222,0.29885984,669.21,668.41,1.15934712]
[1748072704420,0.29885984,669.21,668.42,1.15934712]
[1748072706121,0.29885984,669.21,668.43,1.15934712]
[1748072707325,0.29885984,669.21,668.44,1.15934712]
[1748072708424,0.29885984,669.21,668.45,1.15934712]
[1748072710327,0.29885984,669.21,668.46,1.15934712]
[1748072711626,0.29885984,669.21,668.47,1.15934712]
[1748072712924,0.29885984,669.21,668.48,1.15934712]
[1748072714427,0.29885984,669.21,668.49,1.15934712]
[1748072715327,0.29885984,669.21,668.5,1.15934712]
[1748072716727,0.29885984,669.21,668.28,1.15934712]
[1748072717828,0.29885984,669.21,668.29,1.15934712]
[1748072719323,0.29885984,669.21,668.31,1.10970537]
[1748072721129,0.29885984,669.21,668.32,1.15934712]
[1748072722232,0.29885984,669.21,668.33,1.15934712]
[1748072723932,0.29885984,669.21,668.34,1.15934712]
[1748072725332,0.29885984,669.21,668.35,1.15934712]
[1748072726132,0.29885984,669.21,668.36,1.15934712]
[1748072727134,0.29885984,669.21,668.37,1.15934712]
[1748072728237,0.29885984,669.21,668.38,1.15934712]
[1748072729837,0.29885984,669.21,668.39,1.15934712]
[1748072730838,0.29885984,669.21,668.4,1.15934712]
[1748072732439,0.29885984,669.21,668.41,1.15934712]
[1748072736447,0.29885984,669.21,668.44,1.15934712]
[1748072737643,0.29885984,669.21,668.31,1.15934712]
[1748072738643,0.29885984,669.21,668.11,1.15934712]
[1748072740151,0.29885984,669.21,668.12,1.15934712]
[1748072741049,0.29885984,669.21,668.13,1.15934712]
[1748072742551,0.29885984,669.21,668.14,1.15934712]
[1748072744048,0.29885984,669.21,668.15,1.15934712]
[1748072745153,0.29885984,669.21,668.16,1.15934712]
[1748072746249,0.29885984,669.21,668.17,1.15934712]
[1748072747456,0.29885984,669.21,668.18,1.15934712]
[1748072748962,0.29885984,669.21,668.19,1.15934712]
[1748072750561,0.29885984,669.21,668.2,1.15934712]
[1748072751662,0.29885984,669.21,668.21,1.15934712]
[1748072753457,0.29885984,669.21,668.04,2.26905249]
[1748072754659,0.29885984,669.21,668.05,1.15934712]
[1748072756367,0.29885984,669.21,668.06,1.15934712]
[1748072757471,0.29885984,669.21,668.07,1.15934712]
[1748072758672,0.29885984,669.21,668.08,1.15934712]
[1748072760072,0.29885984,669.21,668.09,1.15934712]
[1748072761275,0.29885984,669.21,668.1,1.15934712]
[1748072762474,0.29885984,669.21,668.11,1.15934712]
[1748072763770,0.29885984,669.21,668.12,1.15934712]
[1748072764875,0.29885984,669.21,668.13,1.15934712]
[1748072766377,0.29885984,669.21,668.01,1.15934712]
[1748072767877,0.29885984,669.21,668.02,1.15934712]
[1748072769781,0.29885984,669.21,667.98,1.15934712]
[1748072770782,0.29885984,669.21,667.8,1.15934712]
[1748072772277,0.29885984,669.21,667.81,1.15934712]
[1748072773381,0.29885984,669.21,667.82,1.15934712]
[1748072774884,0.29885984,669.21,667.83,1.15934712]
[1748072776377,0.29885984,669.21,667.84,1.15934712]
[1748072778390,0.29885984,669.21,667.78,1.15934712]
[1748072779486,0.29885984,669.21,667.79,1.15934712]
[1748072780483,0.29885984,669.21,667.58,1.15934712]
[1748072780688,0.29885984,669.21,667.59,1.10970537]
[1748072781489,0.29885984,669.21,667.6,1.15934712]
[1748072782790,0.29885984,669.21,667.67,1.10970537]
[1748072783989,0.29885984,669.21,667.68,1.15934712]
[1748072785690,0.29885984,669.21,667.73,1.10970537]
[1748072787087,0.29885984,669.21,667.74,1.15934712]
[1748072788391,0.29885984,669.21,667.75,1.15934712]
[1748072789291,0.29885984,669.21,667.76,1.15934712]
[1748072790893,0.29885984,669.21,667.77,1.15934712]
[1748072791794,0.29885984,669.21,667.78,1.15934712]
[1748072792995,0.29885984,669.21,667.79,1.15934712]
[1748072794195,0.29885984,669.21,667.8,1.15934712]
[1748072795097,0.29885984,669.21,667.81,1.15934712]
[1748072796496,0.29885984,669.21,667.82,1.15934712]
[1748072797899,0.29885984,669.21,667.72,1.15934712]
[1748072798698,0.29885984,669.21,667.73,1.15934712]
[1748072800296,0.29885984,669.21,667.74,1.15934712]
[1748072801605,0.29885984,669.21,667.75,1.15934712]
[1748072803409,0.29885984,669.21,667.76,1.15934712]
[1748072804906,0.29885984,669.21,667.77,1.15934712]
[1748072806110,0.29885984,669.21,667.78,1.15934712]
[1748072807013,0.29885984,669.21,667.72,1.10970537]
[1748072807014,0.29885984,669.21,667.79,1.15934712]
[1748072808109,0.29885984,669.21,667.8,1.15934712]
[1748072809414,0.29885984,669.21,667.81,1.15934712]
[1748072811111,0.29885984,669.21,667.82,1.15934712]
[1748072812011,0.29885984,669.21,667.83,1.15934712]
[1748072814116,0.29885984,669.21,667.84,1.15934712]
[1748072815621,0.29885984,669.21,667.85,1.15934712]
[1748072817421,0.29885984,669.21,667.86,1.15934712]
[1748072818323,0.29885984,669.21,667.87,1.15934712]
[1748072819522,0.29885984,669.21,667.88,1.15934712]
[1748072820522,0.29885984,669.21,667.89,1.15934712]
[1748072821518,0.29885984,669.21,667.9,1.15934712]
[1748072822718,0.29885984,669.21,667.81,1.10970537]
[1748072822719,0.29885984,669.21,667.91,1.15934712]
[1748072824227,0.29885984,669.21,667.92,1.15934712]
[1748072825525,0.29885984,669.21,667.93,1.15934712]
[1748072826727,0.29885984,669.21,667.94,1.15934712]
[1748072828328,0.29885984,669.21,667.95,1.15934712]
[1748072829440,0.29885984,669.21,667.96,1.15934712]
[1748072830830,0.29885984,669.21,667.97,1.15934712]
[1748072831932,0.29885984,669.21,667.98,1.15934712]
[1748072833334,0.29885984,669.21,667.99,1.15934712]
[1748072834636,0.29885984,669.21,668.0,1.15934712]
[1748072835537,0.29885984,669.21,668.01,1.15934712]
[1748072836838,0.29885984,669.21,668.02,1.15934712]
[1748072838238,0.29885984,669.21,668.03,1.15934712]
[1748072839844,0.29885984,669.21,668.04,1.15934712]
[1748072841241,0.29885984,669.21,668.05,1.15934712]
[1748072842642,0.29885984,669.21,668.06,1.15934712]
[1748072843947,0.29885984,669.21,667.93,1.15934712]
[1748072845247,0.29885984,669.21,667.94,1.15934712]
[1748072846246,0.29885984,669.21,667.95,1.15934712]
[1748072847343,0.29885984,669.21,667.96,1.15934712]
[1748072848649,0.29885984,669.21,667.97,1.15934712]
[1748072850148,0.29885984,669.21,667.98,1.15934712]
[1748072851449,0.29885984,669.21,667.99,1.15934712]
[1748072852245,0.29885984,669.21,668.0,1.15934712]
[1748072853445,0.29885984,669.21,668.01,1.15934712]
[1748072854548,0.29885984,669.21,668.02,1.15934712]
[1748072855948,0.29885984,669.21,667.87,1.10970537]
[1748072855949,0.29885984,669.21,668.03,1.15934712]
[1748072857557,0.29885984,669.21,668.04,1.15934712]
[1748072859049,0.29885984,669.21,668.05,1.15934712]
[1748072860555,3.71709254,669.08,668.06,1.15934712]
[1748072860757,0.29892685,669.06,668.06,1.15934712]
[1748072861756,0.29892685,669.06,668.07,1.15934712]
[1748072863262,0.29892685,669.06,668.08,1.15934712]
[1748072864362,0.29892685,669.06,668.09,1.15934712]
[1748072866358,0.29892685,669.06,667.87,1.15934712]
[1748072866661,0.26030563,668.82,667.87,1.15934712]
[1748072866865,0.29904306,668.8,667.87,1.15934712]
[1748072867062,0.29904306,668.8,667.88,1.15934712]
[1748072868262,0.29904306,668.8,667.89,1.15934712]
[1748072869668,0.29904306,668.8,667.9,1.15934712]
[1748072871065,0.29904306,668.8,667.91,1.15934712]
[1748072871969,0.29904306,668.8,667.92,1.15934712]
[1748072873272,0.29904306,668.8,667.93,1.15934712]
[1748072874267,0.29904306,668.8,667.94,1.15934712]
[1748072875774,0.29904306,668.8,667.95,1.15934712]
[1748072877375,0.29904306,668.8,667.96,1.15934712]
[1748072878673,0.29904306,668.8,667.97,1.15934712]
[1748072879474,0.29904306,668.8,667.98,1.15934712]
[1748072880876,0.29904306,668.8,667.99,1.15934712]
[1748072881871,0.29904306,668.8,668.0,1.15934712]
[1748072882976,0.29904306,668.8,668.01,1.15934712]
[1748072883877,0.29904306,668.8,668.02,1.15934712]
[1748072885177,0.29904306,668.8,668.03,1.15934712]
[1748072885779,0.29904306,668.8,668.04,1.15934712]
[1748072887584,0.29904306,668.8,668.05,1.15934712]
[1748072889282,0.29904306,668.8,668.06,1.15934712]
[1748072891080,0.29904306,668.8,668.07,1.15934712]
[1748072892781,0.29904306,668.8,668.08,1.15934712]
[1748072894284,0.29904306,668.8,668.09,1.15934712]
[1748072895183,0.29904306,668.8,668.1,1.15934712]
[1748072896989,0.29904306,668.8,668.11,1.15934712]
[1748072898181,0.29904306,668.8,668.12,1.15934712]
[1748072899886,0.29904306,668.8,668.13,1.15934712]
[1748072901185,0.29904306,668.8,668.14,1.15934712]
[1748072902283,0.29904306,668.8,668.15,1.15934712]
[1748072903389,0.29904306,668.8,668.16,1.15934712]
[1748072904984,0.29904306,668.8,667.9,1.10970537]
[1748072906790,0.29904306,668.8,667.91,2.28315584]
[1748072908590,0.29904306,668.8,667.92,2.28315584]
[1748072910292,0.29904306,668.8,667.93,1.17345047]
[1748072912093,0.29904306,668.8,667.94,2.28315584]
[1748072913493,0.29904306,668.8,667.95,1.17345047]
[1748072915195,0.29904306,668.8,667.96,1.17345047]
[1748072916697,0.29904306,668.8,667.97,1.17345047]
[1748072918097,0.29904306,668.8,667.98,1.17345047]
[1748072919398,0.29904306,668.8,667.95,1.10970537]
[1748072919399,0.29904306,668.8,667.99,1.17345047]
[1748072920902,0.29904306,668.8,668.0,1.17345047]
[1748072921704,0.29904306,668.8,668.01,1.17345047]
[1748072923206,0.29904306,668.8,668.02,1.17345047]
[1748072924506,0.29904306,668.8,667.8,1.10970537]
[1748072925609,0.29904306,668.8,667.81,1.17225774]
[1748072926518,0.29904306,668.8,667.82,1.17225774]
[1748072927614,0.29904306,668.8,667.83,1.17225774]
[1748072928722,0.29904306,668.8,667.84,1.17225774]
[1748072930228,0.29904306,668.8,667.85,1.17225774]
[1748072931224,0.29904306,668.8,667.64,1.10970537]
[1748072932725,0.29904306,668.8,667.65,1.17054842]
[1748072934026,0.29904306,668.8,667.66,1.17054842]
[1748072935621,0.29904306,668.8,667.67,1.17054842]
[1748072936826,0.29904306,668.8,667.68,1.17054842]
[1748072938127,0.29904306,668.8,667.26,1.48144836]
[1748072938429,0.29904306,668.8,667.69,1.16880653]
[1748072939530,0.29904306,668.8,667.7,1.16880653]
[1748072940731,0.29904306,668.8,667.71,1.16880653]
[1748072941944,0.29904306,668.8,667.72,1.16880653]
[1748072943037,0.29904306,668.8,667.73,1.16880653]
[1748072944045,0.29904306,668.8,667.74,1.16880653]
[1748072945638,0.29904306,668.8,667.75,1.16880653]
[1748072946938,0.29904306,668.8,667.76,1.16880653]
[1748072948141,0.29904306,668.8,667.77,1.16880653]
[1748072949739,0.29904306,668.8,667.78,1.16880653]
[1748072950942,0.29904306,668.8,667.79,1.16880653]
[1748072952544,0.29904306,668.8,667.8,1.16880653]
[1748072953444,0.29904306,668.8,667.81,1.16880653]
[1748072954740,0.29904306,668.8,667.82,1.16880653]
[1748072956246,0.29904306,668.8,667.83,1.16880653]
[1748072957447,0.29904306,668.8,667.69,1.16880653]
[1748072959243,0.29904306,668.8,667.68,1.11768172]
[1748072959244,0.29904306,668.8,667.7,1.16880653]
[1748072960346,0.29904306,668.8,667.71,1.16880653]
[1748072961348,0.29904306,668.8,667.72,1.16880653]
[1748072962451,0.29904306,668.8,667.73,1.16880653]
[1748072964251,0.29904306,668.8,667.74,1.16880653]
[1748072965356,0.29904306,668.8,667.75,1.16880653]
[1748072966854,0.29904306,668.8,667.76,1.16880653]
[1748072968355,0.29904306,668.8,667.77,1.16880653]
[1748072969454,0.29904306,668.8,667.78,1.16880653]
[1748072971155,0.29904306,668.8,667.79,1.16880653]
[1748072972361,0.29904306,668.8,667.8,1.16880653]
[1748072973863,0.29904306,668.8,667.81,1.16880653]
[1748072976266,0.29904306,668.8,667.83,1.16880653]
[1748072978362,0.29904306,668.8,667.84,1.16880653]
[1748072979962,0.29904306,668.8,667.85,1.16880653]
[1748072981570,0.29904306,668.8,667.86,1.16880653]